bitfinex/quotes_BTCUSD_20250620
["timestamp","ask_amount","ask_price","bid_price","bid_amount"]
[1750461535355,0.34327033,103200.0,103190.0,0.51040935]
[1750461538299,0.34313186,103200.0,103190.0,0.51040935]
[1750461540484,0.002,103200.0,103190.0,0.51040935]
[1750461541953,0.34313186,103200.0,103190.0,0.51040935]
[1750461545784,0.34313186,103200.0,103190.0,0.50922935]
[1750461546874,0.34313186,103200.0,103190.0,0.51038935]
[1750461547716,0.002,103200.0,103190.0,0.51038935]
[1750461547922,0.34313186,103200.0,103190.0,0.51038935]
[1750461548366,0.002,103200.0,103190.0,0.51038935]
[1750461548591,0.34313186,103200.0,103190.0,0.51038935]
[1750461549702,1.04364214,103200.0,103190.0,0.24526935]
[1750461549953,1.04364214,103200.0,103190.0,0.45750935]
[1750461550164,1.05333168,103200.0,103190.0,0.45750935]
[1750461550368,1.06302141,103200.0,103190.0,0.45750935]
[1750461550592,1.08244268,103200.0,103190.0,0.45750935]
[1750461550807,1.07275314,103200.0,103190.0,0.45750935]
[1750461551024,1.08244268,103200.0,103190.0,0.45750935]
[1750461551286,1.07175314,103200.0,103190.0,0.45550935]
[1750461551705,0.73062128,103200.0,103190.0,0.45750935]
[1750461551916,0.73162128,103200.0,103190.0,0.45750935]
[1750461552129,0.74131073,103200.0,103190.0,0.45750935]
[1750461553497,0.74131073,103200.0,103190.0,0.48370935]
[1750461553708,0.73162128,103200.0,103190.0,0.48370935]
[1750461553920,0.73162128,103200.0,103190.0,0.51000935]
[1750461554144,0.371111,103200.0,103190.0,0.51000935]
[1750461554374,0.68313186,103200.0,103190.0,0.51116935]
[1750461554596,0.342,103200.0,103190.0,0.60644828]
[1750461554815,0.002,103200.0,103190.0,0.60644828]
[1750461560625,0.002,103200.0,103190.0,0.94758014]
[1750461561325,0.002,103200.0,103190.0,0.60644828]
[1750461561948,0.002,103200.0,103190.0,0.66434913]
[1750461563605,0.002,103200.0,103190.0,1.00548099]
[1750461565722,0.002,103200.0,103190.0,0.66422913]
[1750461569438,0.002,103200.0,103190.0,1.00536099]
[1750461570242,0.002,103200.0,103190.0,0.66422913]
[1750461572355,0.002,103200.0,103190.0,1.00536099]
[1750461577493,0.73934419,103230.0,103210.0,0.20346799]
[1750461577714,0.34113186,103220.0,103210.0,0.37523622]
[1750461578150,0.35170531,103220.0,103210.0,0.37523622]
[1750461578602,0.35170531,103220.0,103210.0,0.37623622]
[1750461578820,0.35217645,103220.0,103210.0,0.37523622]
[1750461579477,0.35217645,103220.0,103210.0,0.37623622]
[1750461579691,0.35717645,103220.0,103210.0,0.37723622]
[1750461579904,0.35717645,103220.0,103210.0,0.37623622]
[1750461580337,0.01804459,103220.0,103210.0,0.40433622]
[1750461580600,0.35917645,103220.0,103210.0,0.40433622]
[1750461582128,0.35917645,103220.0,103210.0,0.43115622]
[1750461586347,0.35917645,103220.0,103210.0,0.48115622]
[1750461586945,0.01804459,103220.0,103210.0,0.48115622]
[1750461591542,0.35917645,103220.0,103210.0,0.48115622]
[1750461595168,0.01804459,103220.0,103210.0,0.48115622]
[1750461595394,0.35917645,103220.0,103210.0,0.48115622]
[1750461597065,0.01804459,103220.0,103210.0,0.48115622]
[1750461597270,0.35917645,103220.0,103210.0,0.48115622]
[1750461598863,0.35904257,103220.0,103210.0,0.48115622]
[1750461600592,0.70004055,103220.0,103210.0,0.48103622]
[1750461600805,0.35904257,103220.0,103210.0,0.48103622]
[1750461603036,0.01804459,103220.0,103210.0,0.48103622]
[1750461603280,0.35904257,103220.0,103210.0,0.48103622]
[1750461605338,0.01804459,103220.0,103210.0,0.48103622]
[1750461605543,0.35904257,103220.0,103210.0,0.48103622]
[1750461605746,0.35704257,103220.0,103210.0,0.48003622]
[1750461606025,0.35204257,103220.0,103210.0,0.48003622]
[1750461606253,0.35404257,103220.0,103210.0,0.48103622]
[1750461606463,0.35404257,103220.0,103210.0,0.48003622]
[1750461606694,0.35404257,103220.0,103210.0,0.47903622]
[1750461606930,0.35504257,103220.0,103210.0,0.48103622]
[1750461607873,0.35504257,103220.0,103210.0,0.48303622]
[1750461608091,0.35604257,103220.0,103210.0,0.48303622]
[1750461617770,0.01504459,103220.0,103210.0,0.48303622]
[1750461617994,0.69604257,103220.0,103210.0,0.48303622]
[1750461627766,0.35504459,103220.0,103210.0,0.48303622]
[1750461627995,0.69604257,103220.0,103210.0,0.48303622]
[1750461633562,0.47548659,103220.0,103210.0,0.48303622]
[1750461633776,0.34099798,103220.0,103210.0,0.48303622]
[1750461634452,0.36047938,103220.0,103210.0,0.48303622]
[1750461637052,0.70047938,103220.0,103210.0,0.48303622]
[1750461637289,1.04147736,103220.0,103210.0,0.31985622]
[1750461637490,1.04147736,103220.0,103210.0,0.48157622]
[1750461637921,1.04147736,103220.0,103210.0,0.48272622]
[1750461638150,0.3594814,103220.0,103210.0,0.48272622]
[1750461638396,0.70047938,103220.0,103210.0,0.48272622]
[1750461654501,0.3594814,103220.0,103210.0,0.48272622]
[1750461654723,0.70047938,103220.0,103210.0,0.48272622]
[1750461658750,0.3594814,103220.0,103210.0,0.48272622]
[1750461658998,5e-05,103230.0,103220.0,0.32627388]
[1750461659240,0.00019126,103230.0,103220.0,0.66727186]
[1750461659453,0.37029124,103230.0,103220.0,0.32627388]
[1750461659878,0.34118924,103230.0,103220.0,0.32627388]
[1750461660110,0.34118924,103230.0,103220.0,0.48668388]
[1750461660111,0.7726643,103230.0,103220.0,0.48668388]
[1750461660328,1.12334882,103230.0,103220.0,0.46208388]
[1750461660545,1.11466228,103230.0,103220.0,0.46308388]
[1750461660753,0.78335093,103230.0,103220.0,0.46308388]
[1750461661397,0.78335084,103230.0,103220.0,0.46308388]
[1750461662271,0.81816247,103230.0,103220.0,0.46308388]
[1750461664542,0.8278492,103230.0,103220.0,0.46308388]
[1750461664756,0.8278492,103230.0,103220.0,0.48868388]
[1750461665180,0.83753611,103230.0,103220.0,0.48868388]
[1750461665603,0.8278492,103230.0,103220.0,0.48868388]
[1750461666265,0.74605992,103230.0,103220.0,0.48868388]
[1750461667633,0.73637348,103230.0,103220.0,0.48868388]
[1750461667845,0.71700087,103230.0,103220.0,0.48868388]
[1750461668057,0.71700087,103230.0,103220.0,0.48992388]
[1750461670009,0.37600289,103230.0,103220.0,0.48992388]
[1750461670253,0.71700087,103230.0,103220.0,0.48992388]
[1750461674485,0.37600289,103230.0,103220.0,0.48992388]
[1750461674696,0.71700087,103230.0,103220.0,0.48992388]
[1750461679072,0.37600289,103230.0,103220.0,0.48992388]
[1750461679521,0.71700087,103230.0,103220.0,0.48992388]
[1750461681605,0.49330263,103230.0,103220.0,0.48992388]
[1750461681860,0.37680961,103230.0,103220.0,0.48992388]
[1750461687639,0.40590961,103230.0,103220.0,0.48992388]
[1750461688759,0.06491163,103230.0,103220.0,0.48992388]
[1750461689002,0.40590961,103230.0,103220.0,0.48992388]
[1750461689503,0.74590961,103230.0,103220.0,0.48992388]
[1750461689954,0.71680961,103230.0,103220.0,0.48992388]
[1750461696077,0.37680961,103230.0,103220.0,0.48992388]
[1750461706592,0.37680961,103230.0,103220.0,0.32836388]
[1750461706852,0.37680961,103230.0,103220.0,0.48968388]
[1750461710219,0.85508972,103230.0,103220.0,0.27482388]
[1750461710451,0.86415045,103230.0,103220.0,0.27482388]
[1750461710656,0.90294036,103230.0,103220.0,0.27482388]
[1750461711070,0.89325345,103230.0,103220.0,0.27482388]
[1750461711509,0.88419272,103230.0,103220.0,0.27482388]
[1750461711716,0.43879399,103230.0,103220.0,0.30042388]
[1750461711946,0.41559905,103230.0,103220.0,0.32572388]
[1750461712172,0.20805416,103230.0,103220.0,0.32572388]
[1750461712656,0.5577406,103230.0,103220.0,0.32572388]
[1750461712859,0.5764847,103230.0,103220.0,0.32572388]
[1750461713070,0.36843061,103230.0,103220.0,0.32572388]
[1750461713282,0.70942859,103230.0,103220.0,0.32572388]
[1750461714136,1.05042657,103230.0,103220.0,0.3160365]
[1750461714340,1.10822184,103230.0,103220.0,0.27482379]
[1750461714556,1.09853483,103230.0,103220.0,0.28451117]
[1750461714760,1.31165106,103230.0,103220.0,0.27482379]
[1750461715842,1.29227799,103230.0,103220.0,0.21513631]
[1750461716695,1.29227799,103230.0,103220.0,0.29073631]
[1750461717101,1.32356686,103230.0,103220.0,0.30042379]
[1750461717771,1.32356686,103230.0,103220.0,0.32622379]
[1750461718181,1.12982474,103230.0,103220.0,0.33591117]
[1750461718384,0.40685281,103230.0,103220.0,0.33591117]
[1750461718594,1.08884877,103230.0,103220.0,0.33591117]
[1750461718822,1.07916139,103230.0,103220.0,0.33591117]
[1750461719015,1.07979216,103230.0,103220.0,0.33591117]
[1750461719887,0.73879418,103230.0,103220.0,0.33591117]
[1750461720638,0.74848044,103230.0,103220.0,0.33591117]
[1750461722613,0.75816717,103230.0,103220.0,0.33591117]
[1750461723700,0.73879381,103230.0,103220.0,0.33591117]
[1750461723912,0.74848044,103230.0,103220.0,0.33591117]
[1750461724675,0.74848044,103230.0,103220.0,0.33710117]
[1750461726312,0.40848044,103230.0,103220.0,0.33710117]
[1750461726986,0.05779583,103230.0,103220.0,0.33710117]
[1750461727198,0.39879381,103230.0,103220.0,0.33710117]
[1750461727427,0.39879371,103230.0,103220.0,0.33710117]
[1750461727650,0.38910727,103230.0,103220.0,0.33710117]
[1750461727862,0.37942101,103230.0,103220.0,0.33710117]
[1750461729319,0.03842303,103230.0,103220.0,0.33710117]
[1750461729771,0.68104798,103240.0,103230.0,0.2760023]
[1750461729997,0.68104798,103240.0,103230.0,0.4383523]
[1750461730224,1.02209302,103240.0,103230.0,0.4383523]
[1750461730918,0.68109504,103240.0,103230.0,0.4383523]
[1750461731141,0.68409504,103240.0,103230.0,0.4393523]
[1750461731674,0.68509504,103240.0,103230.0,0.4393523]
[1750461731896,0.34509504,103240.0,103230.0,0.4893523]
[1750461732110,0.38473735,103240.0,103230.0,0.4893523]
[1750461732746,0.04373937,103240.0,103230.0,0.4893523]
[1750461733387,0.38473735,103240.0,103230.0,0.4893523]
[1750461740330,0.04373937,103240.0,103230.0,0.4893523]
[1750461741990,0.38473735,103240.0,103230.0,0.4893523]
[1750461742505,0.04373937,103240.0,103230.0,0.58463123]
[1750461746511,0.00409706,103240.0,103230.0,0.58463123]
[1750461747554,0.00409706,103240.0,103230.0,0.94017006]
[1750461752346,0.34099798,103260.0,103250.0,0.02905455]
[1750461752560,0.34104504,103260.0,103250.0,0.44063915]
[1750461753787,0.34604504,103260.0,103250.0,0.44163915]
[1750461754627,0.01204706,103260.0,103250.0,0.58791808]
[1750461754834,0.01204706,103260.0,103250.0,0.92891606]
[1750461755043,0.01204706,103260.0,103250.0,0.94345691]
[1750461755255,0.01204706,103260.0,103250.0,0.60245893]
[1750461755486,0.00504706,103260.0,103250.0,0.94245691]
[1750461755704,0.00504706,103260.0,103250.0,0.98513691]
[1750461755906,0.00804706,103260.0,103250.0,0.98613691]
[1750461756367,0.00304706,103260.0,103250.0,0.98513691]
[1750461756547,0.00604706,103260.0,103250.0,0.98513691]
[1750461756980,0.00304706,103260.0,103250.0,0.98513691]
[1750461757436,4.706e-05,103260.0,103250.0,0.98713691]
[1750461757654,0.00104706,103260.0,103250.0,0.99113691]
[1750461757875,0.00104706,103260.0,103250.0,0.64713893]
[1750461758093,0.00104706,103260.0,103250.0,0.64913893]
[1750461758315,0.00104706,103260.0,103250.0,0.99013691]
[1750461758536,4.706e-05,103260.0,103250.0,0.98613691]
[1750461758795,0.00104706,103260.0,103250.0,0.98913691]
[1750461759014,0.00104706,103260.0,103250.0,0.98868483]
[1750461765735,0.00104706,103260.0,103250.0,0.64813893]
[1750461765942,0.00104706,103260.0,103250.0,0.98868483]
[1750461766588,0.00104706,103260.0,103250.0,0.64813893]
[1750461766798,0.00104706,103260.0,103250.0,0.98868483]
[1750461769564,0.00104706,103260.0,103250.0,0.78500483]
[1750461769768,0.00104706,103260.0,103250.0,0.98840483]
[1750461773388,0.00104706,103260.0,103250.0,0.78500483]
[1750461773594,0.00104706,103260.0,103250.0,0.98840483]
[1750461775455,0.00104706,103260.0,103250.0,0.78500483]
[1750461775662,0.00104706,103260.0,103250.0,0.98840483]
[1750461778932,0.00104706,103260.0,103250.0,0.98841588]
[1750461784231,0.00104706,103260.0,103250.0,0.64785893]
[1750461784441,0.00104706,103260.0,103250.0,0.98841588]
[1750461785870,0.00104706,103260.0,103250.0,0.78501588]
[1750461786088,0.00104706,103260.0,103250.0,0.98837588]
[1750461798938,0.00104706,103260.0,103250.0,0.64781893]
[1750461799139,0.00104706,103260.0,103250.0,0.98837588]
[1750461800945,0.00104706,103260.0,103250.0,0.78501588]
[1750461801349,0.00104706,103260.0,103250.0,0.98829588]
[1750461802683,0.00104706,103260.0,103250.0,0.44445893]
[1750461802899,0.00104706,103260.0,103250.0,0.64773893]
[1750461803118,0.00104706,103260.0,103250.0,0.98829588]
[1750461803942,0.00104706,103260.0,103250.0,0.44327893]
[1750461804152,0.00104706,103260.0,103250.0,0.61945893]
[1750461804359,0.00104706,103260.0,103250.0,0.96121588]
[1750461804613,0.34160401,103260.0,103250.0,0.64931893]
[1750461804825,0.00104706,103260.0,103250.0,0.64931893]
[1750461806954,0.00104706,103260.0,103250.0,0.98987588]
[1750461808689,0.00104706,103260.0,103250.0,0.78663588]
[1750461808899,0.00104706,103260.0,103250.0,0.98987588]
[1750461811494,0.12546628,103270.0,103260.0,0.22273757]
[1750461811706,0.12546628,103270.0,103260.0,0.4787365]
[1750461812905,0.12546628,103270.0,103260.0,0.4827365]
[1750461812906,0.12646628,103270.0,103260.0,0.4827365]
[1750461813648,0.12646628,103270.0,103260.0,0.4847365]
[1750461814265,0.12646628,103270.0,103260.0,0.4859265]
[1750461814474,0.001,103270.0,103260.0,0.82529345]
[1750461814733,0.001,103270.0,103260.0,0.5436265]
[1750461815544,0.001,103270.0,103260.0,0.51393062]
[1750461816785,0.001,103270.0,103260.0,0.85448757]
[1750461817435,0.001,103270.0,103260.0,0.51393062]
[1750461817639,0.001,103270.0,103260.0,0.51274062]
[1750461817846,0.001,103270.0,103260.0,0.48434062]
[1750461818048,0.34155695,103270.0,103260.0,0.48434062]
[1750461820764,0.001,103270.0,103260.0,0.48434062]
[1750461820969,0.34155695,103270.0,103260.0,0.48434062]
[1750461822474,0.55292403,103270.0,103260.0,0.25937003]
[1750461822688,0.7796628,103270.0,103260.0,0.43941757]
[1750461822904,0.35925695,103270.0,103260.0,0.43941757]
[1750461823315,0.3416681,103270.0,103260.0,0.43941757]
[1750461825699,0.001,103270.0,103260.0,0.9314546]
[1750461825919,0.001,103270.0,103260.0,0.5907865]
[1750461827616,0.3406681,103280.0,103270.0,0.222716]
[1750461828045,0.3406681,103280.0,103270.0,0.272716]
[1750461829127,0.3416681,103280.0,103270.0,0.277716]
[1750461829360,0.001,103280.0,103270.0,0.77016303]
[1750461829590,0.001,103280.0,103270.0,0.77335303]
[1750461830945,0.001,103280.0,103270.0,1.2873709]
[1750461831400,0.001,103280.0,103270.0,1.24805283]
[1750461832048,0.3407181,103290.0,103280.0,0.22269445]
[1750461832267,0.3407181,103290.0,103280.0,0.36797338]
[1750461832927,5e-05,103290.0,103280.0,0.36797338]
[1750461833350,5e-05,103290.0,103280.0,0.37097338]
[1750461833570,5e-05,103290.0,103280.0,0.32097338]
[1750461833789,5e-05,103290.0,103280.0,0.48161338]
[1750461833994,5e-05,103290.0,103280.0,0.53161338]
[1750461834426,0.38897843,103290.0,103280.0,0.53161338]
[1750461834654,0.41802145,103290.0,103280.0,0.41697065]
[1750461834857,0.64021178,103290.0,103280.0,0.42665269]
[1750461835542,0.63053115,103290.0,103280.0,0.42665269]
[1750461835750,0.63053115,103290.0,103280.0,0.26301269]
[1750461835959,0.63053115,103290.0,103280.0,0.42365269]
[1750461835960,0.63153115,103290.0,103280.0,0.42365269]
[1750461836168,0.63153115,103290.0,103280.0,0.42565269]
[1750461836613,0.65970346,103290.0,103280.0,0.42565269]
[1750461837074,0.65970346,103290.0,103280.0,0.002]
[1750461837269,5.75398655,103290.0,103280.0,0.22232241]
[1750461837466,5.75398655,103290.0,103280.0,0.06168241]
[1750461837704,5.77718805,103290.0,103280.0,0.06168241]
[1750461838132,5.77718805,103290.0,103280.0,0.26501306]
[1750461838544,5.77718805,103290.0,103280.0,0.27469528]
[1750461839810,5.76750676,103290.0,103280.0,0.27469528]
[1750461840273,6.10750676,103290.0,103280.0,0.22469528]
[1750461840489,6.10750676,103290.0,103280.0,0.27469528]
[1750461840717,6.10750718,103290.0,103280.0,0.27469528]
[1750461841141,6.10750718,103290.0,103280.0,0.28437741]
[1750461841357,6.10750718,103290.0,103280.0,0.29405945]
[1750461841800,6.11718847,103290.0,103280.0,0.29405898]
[1750461842654,6.11718844,103290.0,103280.0,0.29405851]
[1750461843545,5.59272074,103290.0,103280.0,0.29405805]
[1750461843756,5.59272074,103290.0,103280.0,0.28437629]
[1750461844224,5.56951924,103290.0,103280.0,0.29405805]
[1750461844655,5.76314882,103290.0,103280.0,0.28437629]
[1750461845064,5.78634839,103290.0,103280.0,0.28437629]
[1750461845276,5.57321824,103290.0,103280.0,0.2843762]
[1750461845504,0.75840119,103290.0,103280.0,0.2843762]
[1750461845917,0.75840109,103290.0,103280.0,0.2843762]
[1750461846129,0.74871974,103290.0,103280.0,0.3130762]
[1750461846343,0.74871974,103290.0,103280.0,0.3399762]
[1750461846549,0.74871974,103290.0,103280.0,0.3411862]
[1750461846980,0.75840093,103290.0,103280.0,0.3411862]
[1750461847407,0.74871974,103290.0,103280.0,0.3411862]
[1750461847631,0.75840093,103290.0,103280.0,0.3411862]
[1750461848102,0.74871974,103290.0,103280.0,0.3411862]
[1750461849045,0.72935686,103290.0,103280.0,0.3411862]
[1750461849499,0.7202978,103290.0,103280.0,0.3411862]
[1750461849906,0.72997843,103290.0,103280.0,0.3411862]
[1750461850104,0.73965934,103290.0,103280.0,0.3411862]
[1750461850322,1.09891848,103290.0,103280.0,0.2650125]
[1750461850543,0.73596112,103290.0,103280.0,0.38529445]
[1750461850791,6.29421477,103290.0,103280.0,0.002]
[1750461851021,6.31741457,103290.0,103280.0,0.002]
[1750461851245,6.37916486,103290.0,103280.0,0.002]
[1750461851478,6.41495994,103290.0,103280.0,0.002]
[1750461851981,0.22271572,103270.0,103260.0,0.22273628]
[1750461852193,0.6888726,103270.0,103260.0,0.22273628]
[1750461852414,0.6888726,103270.0,103260.0,0.23242029]
[1750461852838,0.71207142,103270.0,103260.0,0.23242029]
[1750461853059,0.03915282,103270.0,103260.0,0.35150354]
[1750461853281,0.001,103270.0,103260.0,0.35271354]
[1750461853705,0.34151913,103270.0,103260.0,0.35271354]
[1750461853910,0.34151913,103270.0,103260.0,0.51331354]
[1750461854325,0.34151913,103270.0,103260.0,0.51531354]
[1750461854545,0.35120173,103270.0,103260.0,0.51531354]
[1750461854756,0.34151913,103270.0,103260.0,0.51531354]
[1750461855604,0.35120182,103270.0,103260.0,0.51531354]
[1750461855863,0.14695226,103270.0,103260.0,0.51531354]
[1750461856308,0.13726966,103270.0,103260.0,0.51531354]
[1750461856728,0.36904649,103280.0,103270.0,0.222716]
[1750461856938,0.7186213,103280.0,103270.0,0.222716]
[1750461857395,0.70956562,103280.0,103270.0,0.222716]
[1750461857623,0.71862131,103280.0,103270.0,0.222716]
[1750461857842,0.37810218,103280.0,103270.0,0.222716]
[1750461858085,0.71862131,103280.0,103270.0,0.222716]
[1750461858330,0.71866837,103280.0,103270.0,0.223716]
[1750461858561,0.70898605,103280.0,103270.0,0.223716]
[1750461858797,0.71866827,103280.0,103270.0,0.223716]
[1750461859255,0.70898558,103280.0,103270.0,0.302716]
[1750461859406,0.70898558,103280.0,103270.0,0.331726]
[1750461859619,0.34910275,103280.0,103270.0,0.330516]
[1750461859838,0.34004706,103280.0,103270.0,0.330516]
[1750461860625,0.68056619,103280.0,103270.0,0.330516]
[1750461860843,0.69024776,103280.0,103270.0,0.330516]
[1750461861035,0.68056619,103280.0,103270.0,0.331726]
[1750461861358,0.34004706,103280.0,103270.0,0.331726]
[1750461861560,0.68056619,103280.0,103270.0,0.331726]
[1750461862206,0.34004706,103280.0,103270.0,0.331726]
[1750461862407,0.68056619,103280.0,103270.0,0.331726]
[1750461862687,0.34004706,103280.0,103270.0,0.331726]
[1750461863060,4.706e-05,103280.0,103270.0,0.331726]
[1750461869001,4.706e-05,103280.0,103270.0,0.42700493]
[1750461869844,0.34051913,103290.0,103280.0,0.27869445]
[1750461870053,0.34958024,103290.0,103280.0,0.44046445]
[1750461871107,0.35157901,103290.0,103280.0,0.44046445]
[1750461871314,0.35357901,103290.0,103280.0,0.44146445]
[1750461871527,0.34451913,103290.0,103280.0,0.44146445]
[1750461871736,0.004,103290.0,103280.0,0.44146445]
[1750461871937,0.344,103290.0,103280.0,0.49146445]
[1750461872351,0.38378819,103290.0,103280.0,0.49146445]
[1750461874048,0.72430732,103290.0,103280.0,0.49146445]
[1750461878384,0.38378819,103290.0,103280.0,0.49146445]
[1750461878600,0.72430732,103290.0,103280.0,0.49146445]
[1750461879058,0.38378819,103290.0,103280.0,0.49146445]
[1750461883642,0.04378819,103290.0,103280.0,0.49146445]
[1750461890498,0.04378819,103290.0,103280.0,0.58674338]
[1750461893532,0.38430732,103290.0,103280.0,0.58674338]
[1750461893963,0.38430732,103290.0,103280.0,0.58670338]
[1750461897493,0.04378819,103290.0,103280.0,0.58670338]
[1750461902964,0.38430732,103290.0,103280.0,0.58670338]
[1750461905353,0.04378819,103290.0,103280.0,0.58670338]
[1750461908702,0.004,103290.0,103280.0,0.58670338]
[1750461909827,0.03764368,103290.0,103280.0,0.58670338]
[1750461910035,0.004,103290.0,103280.0,0.58670338]
[1750461912658,0.34451913,103290.0,103280.0,0.58670338]
[1750461912877,0.34451705,103290.0,103280.0,0.58670338]
[1750461913085,0.34451705,103290.0,103280.0,0.49021445]
[1750461913296,0.34451705,103290.0,103280.0,0.49142445]
[1750461914159,0.37803039,103290.0,103280.0,0.49142445]
[1750461915019,0.37805644,103290.0,103280.0,0.49142445]
[1750461915656,0.03751334,103290.0,103280.0,0.49142445]
[1750461915868,0.37805644,103290.0,103280.0,0.49142445]
[1750461920462,0.37805644,103290.0,103280.0,0.30269445]
[1750461920679,0.76742435,103290.0,103280.0,0.43417445]
[1750461920894,0.42688125,103290.0,103280.0,0.43417445]
[1750461921747,0.43656188,103290.0,103280.0,0.43417445]
[1750461923257,0.43656188,103290.0,103280.0,0.27369445]
[1750461923436,0.43656188,103290.0,103280.0,0.43417445]
[1750461923686,0.4462383,103290.0,103280.0,0.43417445]
[1750461923895,0.42687695,103290.0,103280.0,0.43417445]
[1750461925180,0.42687695,103290.0,103280.0,0.49838445]
[1750461925592,0.08633385,103290.0,103280.0,0.49838445]
[1750461925809,0.38713036,103290.0,103280.0,0.49838445]
[1750461926023,0.38712801,103290.0,103280.0,0.49838445]
[1750461926869,0.72712801,103290.0,103280.0,0.49838445]
[1750461928220,0.38658491,103290.0,103280.0,0.49838445]
[1750461928424,0.71805644,103290.0,103280.0,0.49838445]
[1750461928839,0.72712624,103290.0,103280.0,0.49838445]
[1750461930068,0.37751334,103290.0,103280.0,0.49838445]
[1750461930114,0.72712622,103290.0,103280.0,0.49838445]
[1750461930933,0.71805644,103290.0,103280.0,0.49838445]
[1750461931137,0.72712631,103290.0,103280.0,0.49838445]
[1750461931527,0.72712646,103290.0,103280.0,0.49838445]
[1750461934382,0.72712676,103290.0,103280.0,0.49838445]
[1750461935030,0.38658366,103290.0,103280.0,0.49838445]
[1750461935206,0.72712676,103290.0,103280.0,0.49838445]
[1750461936800,0.72711843,103290.0,103280.0,0.49838445]
[1750461937408,0.72711919,103290.0,103280.0,0.49838445]
[1750461937631,0.72711998,103290.0,103280.0,0.49838445]
[1750461938068,0.34960664,103290.0,103280.0,0.49838445]
[1750461939127,0.38355522,103290.0,103280.0,0.49838445]
[1750461941650,0.72355522,103290.0,103280.0,0.49838445]
[1750461943181,0.72355522,103290.0,103280.0,0.49738445]
[1750461943500,0.72355522,103290.0,103280.0,0.49938445]
[1750461945373,0.72355522,103290.0,103280.0,0.50038445]
[1750461945779,0.71448335,103290.0,103280.0,0.50038445]
[1750461945982,0.7235586,103290.0,103280.0,0.50038445]
[1750461947242,0.38302383,103290.0,103280.0,0.50038445]
[1750461947439,0.7235586,103290.0,103280.0,0.50038445]
[1750461947877,0.3835586,103290.0,103280.0,0.50038445]
[1750461948697,0.38356002,103290.0,103280.0,0.50038445]
[1750461951651,0.38356172,103290.0,103280.0,0.50038445]
[1750461954410,0.38356195,103290.0,103280.0,0.50038445]
[1750461956439,0.38356262,103290.0,103280.0,0.50038445]
[1750461957252,0.38356269,103290.0,103280.0,0.50038445]
[1750461959501,0.38356366,103290.0,103280.0,0.50038445]
[1750461961979,0.3835638,103290.0,103280.0,0.50038445]
[1750461962828,0.38356372,103290.0,103280.0,0.50038445]
[1750461967001,0.15446774,103290.0,103280.0,0.50038445]
[1750461968244,0.19436522,103290.0,103280.0,0.50038445]
[1750461971985,0.03989748,103290.0,103280.0,0.50038445]
[1750461972314,0.34053477,103290.0,103280.0,0.50038445]
[1750461972649,0.37933095,103290.0,103280.0,0.50038445]
[1750461979003,0.38841202,103290.0,103280.0,0.50038445]
[1750461982557,0.04787725,103290.0,103280.0,0.50038445]
[1750461982760,0.38841193,103290.0,103280.0,0.50038445]
[1750461983879,0.3884118,103290.0,103280.0,0.50038445]
[1750461984965,0.04787703,103290.0,103280.0,0.50038445]
[1750461985167,0.04787703,103290.0,103280.0,0.59566338]
[1750461985384,0.04787703,103290.0,103280.0,0.93619815]
[1750461985800,0.03879618,103290.0,103280.0,0.93619815]
[1750461986044,0.34058477,103300.0,103290.0,0.28257288]
[1750461986253,0.34966515,103300.0,103290.0,0.28379288]
[1750461987043,0.38961532,103300.0,103290.0,0.28379288]
[1750461987667,0.39061532,103300.0,103290.0,0.28379288]
[1750461988698,0.39161532,103300.0,103290.0,0.28379288]
[1750461991310,0.39160713,103300.0,103290.0,0.28379288]
[1750461992120,0.39060713,103300.0,103290.0,0.28379288]
[1750461992354,0.38960713,103300.0,103290.0,0.28379288]
[1750461992557,0.38960713,103300.0,103290.0,0.28579288]
[1750461993821,0.04907236,103300.0,103290.0,0.28579288]
[1750461994034,0.38960713,103300.0,103290.0,0.28579288]
[1750461994245,0.38960531,103300.0,103290.0,0.28579288]
[1750461996680,0.38053494,103300.0,103290.0,0.28579288]
[1750461996897,0.38960408,103300.0,103290.0,0.28579288]
[1750461997375,0.04906931,103300.0,103290.0,0.28579288]
[1750461997590,0.38960408,103300.0,103290.0,0.28579288]
[1750462000057,0.38960336,103300.0,103290.0,0.28579288]
[1750462000890,0.38053494,103300.0,103290.0,0.28579288]
[1750462005525,0.04000017,103300.0,103290.0,0.28579288]
[1750462005724,0.38053494,103300.0,103290.0,0.28579288]
[1750462005933,0.38053494,103300.0,103290.0,0.33579288]
[1750462007534,0.04000017,103300.0,103290.0,0.43107181]
[1750462008019,0.38053494,103300.0,103290.0,0.43107181]
[1750462008461,0.04000017,103300.0,103290.0,0.43107181]
[1750462012378,0.72053494,103300.0,103290.0,0.43107181]
[1750462014976,0.38000017,103300.0,103290.0,0.43107181]
[1750462015181,0.72053494,103300.0,103290.0,0.43107181]
[1750462017766,0.38000017,103300.0,103290.0,0.43107181]
[1750462017970,0.72053494,103300.0,103290.0,0.43107181]
[1750462021258,1.08042975,103300.0,103290.0,0.22467297]
[1750462021466,1.20561105,103300.0,103290.0,0.27467288]
[1750462021678,1.21529159,103300.0,103290.0,0.27467307]
[1750462021905,6.65161317,103300.0,103290.0,0.002]
[1750462022108,0.3496826,103270.0,103260.0,0.46093516]
[1750462022358,0.69929195,103270.0,103260.0,0.46098222]
[1750462022978,0.69021737,103270.0,103260.0,0.46098222]
[1750462023246,0.69990006,103270.0,103260.0,0.46098222]
[1750462023440,0.70090006,103270.0,103260.0,0.46498222]
[1750462023874,0.70090006,103270.0,103260.0,0.46698222]
[1750462024539,0.341,103270.0,103260.0,0.46698222]
[1750462024711,0.68153477,103270.0,103260.0,0.49718222]
[1750462026050,0.68153477,103270.0,103260.0,0.33813222]
[1750462026257,0.68153477,103270.0,103260.0,0.49833222]
[1750462029230,0.341,103270.0,103260.0,0.59361115]
[1750462029445,0.341,103270.0,103260.0,0.93414592]
[1750462030316,0.001,103270.0,103260.0,0.93414592]
[1750462032732,0.001,103270.0,103260.0,0.59361115]
[1750462032982,0.001,103270.0,103260.0,0.93417724]
[1750462033578,0.001,103270.0,103260.0,0.59361115]
[1750462034430,0.34056609,103290.0,103280.0,0.22269445]
[1750462035595,0.34256609,103290.0,103280.0,0.22269445]
[1750462036263,0.68256609,103290.0,103280.0,0.22269445]
[1750462036468,0.68456609,103290.0,103280.0,0.22269445]
[1750462038326,0.68256609,103290.0,103280.0,0.22269445]
[1750462038786,0.68056609,103290.0,103280.0,0.22269445]
[1750462039039,0.68056609,103290.0,103280.0,0.22469445]
[1750462041081,0.68056609,103290.0,103280.0,0.25519445]
[1750462043438,0.68056609,103290.0,103280.0,0.28449445]
[1750462045939,0.34056609,103290.0,103280.0,0.28449445]
[1750462046146,0.34,103290.0,103280.0,0.28564445]
[1750462046371,0.68056609,103290.0,103280.0,0.28564445]
[1750462048082,0.68056609,103290.0,103280.0,0.49576445]
[1750462048494,0.34,103290.0,103280.0,0.49576445]
[1750462049844,0.08220017,103300.0,103290.0,0.22267288]
[1750462049845,0.38056626,103300.0,103290.0,0.22267288]
[1750462050052,0.3896195,103300.0,103290.0,0.28532288]